[Event "*** Titled Tuesday 3|2 Blitz"]
[Site "Chess.com"]
[Date "2016.10.04"]
[Round "4"]
[White "agser"]
[Black "Ar4uha"]
[Result "1/2-1/2"]
[WhiteElo "2515"]
[BlackElo "2479"]
[TimeControl "180+2"]
[EndTime "17:54:38 PDT"]
[Termination "Game drawn by stalemate"]

1. d4 {[%clk 0:03:02]} 1... Nf6 {[%clk 0:02:58.9]} 2. c4 {[%clk 0:03:02.2]} 2...
e6 {[%clk 0:03:00.3]} 3. Nf3 {[%clk 0:03:03.3]} 3... b6 {[%clk 0:03:01.3]} 4. g3
{[%clk 0:03:04.5]} 4... Ba6 {[%clk 0:03:02.8]} 5. b3 {[%clk 0:03:05.5]} 5...
Bb4+ {[%clk 0:03:03.3]} 6. Bd2 {[%clk 0:03:06.5]} 6... c5 {[%clk 0:03:04.9]} 7.
Bxb4 {[%clk 0:02:57.2]} 7... cxb4 {[%clk 0:03:06.8]} 8. Bg2 {[%clk 0:02:56.3]}
8... Bb7 {[%clk 0:03:08.1]} 9. O-O {[%clk 0:02:54]} 9... O-O {[%clk 0:03:09.6]}
10. Nbd2 {[%clk 0:02:54]} 10... Qe7 {[%clk 0:03:10.1]} 11. Qc2 {[%clk
0:02:49.4]} 11... d6 {[%clk 0:03:06.1]} 12. e4 {[%clk 0:02:47.9]} 12... e5
{[%clk 0:02:56.6]} 13. d5 {[%clk 0:02:45.6]} 13... Na6 {[%clk 0:02:42.8]} 14.
Ne1 {[%clk 0:02:41.5]} 14... Nc5 {[%clk 0:02:39.6]} 15. a3 {[%clk 0:02:38.8]}
15... a5 {[%clk 0:02:33.4]} 16. Nd3 {[%clk 0:02:08.7]} 16... Nxd3 {[%clk
0:02:23.8]} 17. Qxd3 {[%clk 0:02:10.6]} 17... Nd7 {[%clk 0:02:17.5]} 18. axb4
{[%clk 0:01:48.2]} 18... axb4 {[%clk 0:02:19.4]} 19. Qe3 {[%clk 0:01:33.5]}
19... Nc5 {[%clk 0:02:16.8]} 20. Rfb1 {[%clk 0:01:32.3]} 20... Qc7 {[%clk
0:02:15.9]} 21. Nf3 {[%clk 0:01:30.8]} 21... Rxa1 {[%clk 0:02:06.6]} 22. Rxa1
{[%clk 0:01:32]} 22... Ra8 {[%clk 0:02:08.5]} 23. Rxa8+ {[%clk 0:01:26.1]} 23...
Bxa8 {[%clk 0:02:10.4]} 24. Ne1 {[%clk 0:01:10.5]} 24... Qa7 {[%clk 0:02:01.9]}
25. Nc2 {[%clk 0:01:06.9]} 25... Qa2 {[%clk 0:01:32.2]} 26. Nxb4 {[%clk
0:01:06.8]} 26... Qxb3 {[%clk 0:01:33.4]} 27. Qxb3 {[%clk 0:01:05.3]} 27... Nxb3
{[%clk 0:01:35.3]} 28. Na6 {[%clk 0:00:20.6]} 28... Bb7 {[%clk 0:01:27.2]} 29.
Nb8 {[%clk 0:00:17.7]} 29... Nd2 {[%clk 0:01:03.4]} 30. Bf1 {[%clk 0:00:16.5]}
30... Nxe4 {[%clk 0:01:03.2]} 31. Nd7 {[%clk 0:00:18]} 31... Nc5 {[%clk
0:00:47.9]} 32. Nxb6 {[%clk 0:00:18.2]} 32... Kf8 {[%clk 0:00:49.5]} 33. f4
{[%clk 0:00:17.5]} 33... Ke7 {[%clk 0:00:48.9]} 34. Kf2 {[%clk 0:00:18.4]} 34...
f5 {[%clk 0:00:49.5]} 35. Ke3 {[%clk 0:00:18.6]} 35... h6 {[%clk 0:00:47.9]} 36.
Bd3 {[%clk 0:00:16.9]} 36... Kf6 {[%clk 0:00:44]} 37. Bc2 {[%clk 0:00:17.9]}
37... g5 {[%clk 0:00:43.1]} 38. Na4 {[%clk 0:00:17.9]} 38... Nd7 {[%clk
0:00:28.7]} 39. Nc3 {[%clk 0:00:17.5]} 39... Ba6 {[%clk 0:00:30.2]} 40. Bd3
{[%clk 0:00:13.8]} 40... Nc5 {[%clk 0:00:21.5]} 41. Nb5 {[%clk 0:00:13.3]} 41...
Bxb5 {[%clk 0:00:21.4]} 42. cxb5 {[%clk 0:00:14.7]} 42... Nd7 {[%clk 0:00:22.8]}
43. Be2 {[%clk 0:00:08.8]} 43... Nb6 {[%clk 0:00:23.1]} 44. Bf3 {[%clk
0:00:09.4]} 44... e4 {[%clk 0:00:24.2]} 45. Be2 {[%clk 0:00:09.5]} 45... Nxd5+
{[%clk 0:00:25.7]} 46. Kd4 {[%clk 0:00:11]} 46... Nb6 {[%clk 0:00:27]} 47. Bd1
{[%clk 0:00:09.7]} 47... Ke6 {[%clk 0:00:24.5]} 48. Bb3+ {[%clk 0:00:10.2]}
48... d5 {[%clk 0:00:15.5]} 49. Kc5 {[%clk 0:00:04.5]} 49... e3 {[%clk
0:00:16.8]} 50. Bd1 {[%clk 0:00:05.2]} 50... Na4+ {[%clk 0:00:15.1]} 51. Kb4
{[%clk 0:00:03.5]} 51... Nb6 {[%clk 0:00:09.9]} 52. Kc5 {[%clk 0:00:04.1]} 52...
Na4+ {[%clk 0:00:11.4]} 53. Kb4 {[%clk 0:00:04.5]} 53... Nb6 {[%clk 0:00:09.6]}
54. Kc5 {[%clk 0:00:03.6]} 54... Nd7+ {[%clk 0:00:10.1]} 55. Kd4 {[%clk
0:00:04.9]} 55... Kd6 {[%clk 0:00:10.2]} 56. Kxe3 {[%clk 0:00:03.9]} 56... Kc5
{[%clk 0:00:11.1]} 57. fxg5 {[%clk 0:00:04]} 57... hxg5 {[%clk 0:00:11.8]} 58.
h4 {[%clk 0:00:05.7]} 58... d4+ {[%clk 0:00:13]} 59. Kd3 {[%clk 0:00:06.9]}
59... Ne5+ {[%clk 0:00:14.1]} 60. Kd2 {[%clk 0:00:06.1]} 60... gxh4 {[%clk
0:00:16]} 61. gxh4 {[%clk 0:00:08]} 61... Kxb5 {[%clk 0:00:17.2]} 62. h5 {[%clk
0:00:09.5]} 62... Kc5 {[%clk 0:00:18.1]} 63. h6 {[%clk 0:00:11]} 63... Nf7
{[%clk 0:00:18.5]} 64. h7 {[%clk 0:00:11.9]} 64... Nh8 {[%clk 0:00:18.3]} 65.
Bc2 {[%clk 0:00:10.7]} 65... f4 {[%clk 0:00:18.1]} 66. Ke2 {[%clk 0:00:11.8]}
66... Kc4 {[%clk 0:00:18]} 67. Kf3 {[%clk 0:00:11.7]} 67... Kd5 {[%clk
0:00:12.2]} 68. Kxf4 {[%clk 0:00:11.6]} 68... Ke6 {[%clk 0:00:13.8]} 69. Kg5
{[%clk 0:00:11.3]} 69... Kf7 {[%clk 0:00:15.1]} 70. Kh6 {[%clk 0:00:09.9]} 70...
Kf6 {[%clk 0:00:16.6]} 71. Bd3 {[%clk 0:00:08.8]} 71... Kf7 {[%clk 0:00:17.8]}
72. Bb5 {[%clk 0:00:09.6]} 72... Kf8 {[%clk 0:00:17.1]} 73. Bc4 {[%clk
0:00:10.6]} 73... d3 {[%clk 0:00:05.7]} 74. Bxd3 {[%clk 0:00:12.1]} 74... Nf7+
{[%clk 0:00:07.3]} 75. Kg6 {[%clk 0:00:12.7]} 75... Ne5+ {[%clk 0:00:08.1]} 76.
Kh6 {[%clk 0:00:06.4]} 76... Nf7+ {[%clk 0:00:09]} 77. Kg6 {[%clk 0:00:06.6]}
77... Ne5+ {[%clk 0:00:10.5]} 78. Kf6 {[%clk 0:00:08.3]} 78... Ng4+ {[%clk
0:00:12.1]} 79. Kg6 {[%clk 0:00:08.6]} 79... Ne5+ {[%clk 0:00:12.7]} 80. Kf5
{[%clk 0:00:08.6]} 80... Kg7 {[%clk 0:00:13.4]} 81. Kxe5 {[%clk 0:00:09.5]}
81... Kh8 {[%clk 0:00:14.9]} 82. Kf6 {[%clk 0:00:10.5]} 1/2-1/2

[Event "*** Titled Tuesday 3|2 Blitz"]
[Site "Chess.com"]
[Date "2016.10.04"]
[Round "5"]
[White "AllStarShark"]
[Black "josiwales"]
[Result "1-0"]
[WhiteElo "2277"]
[BlackElo "2207"]
[TimeControl "180+2"]
[EndTime "18:00:17 PDT"]
[Termination "AllStarShark won by resignation"]

1. d4 {[%clk 0:03:02]} 1... Nf6 {[%clk 0:03:00.5]} 2. Bg5 {[%clk 0:03:02.9]}
2... Ne4 {[%clk 0:02:55.8]} 3. Bf4 {[%clk 0:03:03.6]} 3... g6 {[%clk 0:02:55.3]}
4. f3 {[%clk 0:03:03.1]} 4... Nf6 {[%clk 0:02:55.2]} 5. e4 {[%clk 0:03:04.1]}
5... Bg7 {[%clk 0:02:55.6]} 6. Nc3 {[%clk 0:03:05]} 6... d6 {[%clk 0:02:54]} 7.
Qd2 {[%clk 0:03:06.1]} 7... O-O {[%clk 0:02:53.9]} 8. h4 {[%clk 0:03:06]} 8...
h5 {[%clk 0:02:53.1]} 9. O-O-O {[%clk 0:03:06]} 9... Nc6 {[%clk 0:02:53.2]} 10.
g4 {[%clk 0:03:06]} 10... hxg4 {[%clk 0:02:52]} 11. h5 {[%clk 0:03:07.3]} 11...
gxh5 {[%clk 0:02:48.9]} 12. Bg5 {[%clk 0:03:03.3]} 12... e6 {[%clk 0:02:34.7]}
13. fxg4 {[%clk 0:02:54.8]} 13... Qe8 {[%clk 0:02:10.3]} 14. gxh5 {[%clk
0:02:55]} 14... Nh7 {[%clk 0:02:03.6]} 15. h6 {[%clk 0:02:45.7]} 15... Bxd4
{[%clk 0:01:56.5]} 16. Nf3 {[%clk 0:02:37.7]} 16... e5 {[%clk 0:01:51]} 17. Nd5
{[%clk 0:02:29.6]} 17... Bg4 {[%clk 0:01:42.3]} 18. Qg2 {[%clk 0:02:27.7]} 18...
Bxf3 {[%clk 0:01:35.4]} 19. Qxf3 {[%clk 0:02:26.5]} 19... Nxg5 {[%clk
0:01:35.5]} 20. Qf6 {[%clk 0:02:18.7]} 1-0

[Event "*** Titled Tuesday 3|2 Blitz"]
[Site "Chess.com"]
[Date "2016.10.04"]
[Round "5"]
[White "Kubas1010"]
[Black "Jahonas"]
[Result "1-0"]
[WhiteElo "2447"]
[BlackElo "2163"]
[TimeControl "180+2"]
[EndTime "18:00:30 PDT"]
[Termination "Kubas1010 won by checkmate"]

1. e4 {[%clk 0:03:01.9]} 1... e5 {[%clk 0:03:00.3]} 2. Nf3 {[%clk 0:03:02.4]}
2... Nc6 {[%clk 0:03:01.2]} 3. Bb5 {[%clk 0:03:03.2]} 3... Nge7 {[%clk
0:03:02.2]} 4. Nc3 {[%clk 0:03:03.2]} 4... a6 {[%clk 0:03:03.2]} 5. Bc4 {[%clk
0:03:02.8]} 5... Ng6 {[%clk 0:02:57.8]} 6. O-O {[%clk 0:03:02.4]} 6... Be7
{[%clk 0:02:58.1]} 7. d4 {[%clk 0:03:01.9]} 7... exd4 {[%clk 0:02:59]} 8. Nxd4
{[%clk 0:03:02.7]} 8... Nxd4 {[%clk 0:02:53.7]} 9. Qxd4 {[%clk 0:03:03.1]} 9...
O-O {[%clk 0:02:54.7]} 10. f4 {[%clk 0:03:01.7]} 10... d6 {[%clk 0:02:54.8]} 11.
Nd5 {[%clk 0:02:58]} 11... c6 {[%clk 0:02:51.8]} 12. Nxe7+ {[%clk 0:02:58.3]}
12... Qxe7 {[%clk 0:02:52]} 13. b3 {[%clk 0:02:57.8]} 13... b5 {[%clk
0:02:51.3]} 14. Bd3 {[%clk 0:02:54]} 14... c5 {[%clk 0:02:50.7]} 15. Qe3 {[%clk
0:02:51]} 15... Bb7 {[%clk 0:02:49.1]} 16. Bb2 {[%clk 0:02:49.1]} 16... f5
{[%clk 0:02:45.2]} 17. Rae1 {[%clk 0:02:37.6]} 17... Rae8 {[%clk 0:02:45.2]} 18.
Qg3 {[%clk 0:02:25.6]} 18... fxe4 {[%clk 0:02:40.5]} 19. f5 {[%clk 0:02:26.2]}
19... Qh4 {[%clk 0:02:27.8]} 20. fxg6 {[%clk 0:02:19.7]} 20... Qxg3 {[%clk
0:02:17.7]} 21. hxg3 {[%clk 0:02:12.7]} 21... exd3 {[%clk 0:02:11.9]} 22. Rxf8+
{[%clk 0:02:06.6]} 22... Rxf8 {[%clk 0:02:10.4]} 23. Re7 {[%clk 0:01:59.8]}
23... d2 {[%clk 0:01:34.3]} 24. Rxg7+ {[%clk 0:02:00.1]} 24... Kh8 {[%clk
0:01:34.6]} 25. Rxh7+ {[%clk 0:01:59.9]} 25... Kg8 {[%clk 0:01:34.2]} 26. Rh8#
{[%clk 0:02:01.1]} 1-0

[Event "*** Titled Tuesday 3|2 Blitz"]
[Site "Chess.com"]
[Date "2016.10.04"]
[Round "5"]
[White "johnathan113"]
[Black "Quiet_Desperation"]
[Result "1-0"]
[WhiteElo "2299"]
[BlackElo "2225"]
[TimeControl "180+2"]
[EndTime "18:01:25 PDT"]
[Termination "johnathan113 won by resignation"]

1. e4 {[%clk 0:03:02]} 1... e6 {[%clk 0:03:00]} 2. b3 {[%clk 0:03:03]} 2... d5
{[%clk 0:03:00]} 3. Bb2 {[%clk 0:03:04.6]} 3... Nf6 {[%clk 0:03:00.9]} 4. e5
{[%clk 0:03:05.4]} 4... Nfd7 {[%clk 0:03:01.9]} 5. f4 {[%clk 0:03:07.1]} 5... c5
{[%clk 0:03:03.3]} 6. Qg4 {[%clk 0:03:07.9]} 6... Nc6 {[%clk 0:03:04]} 7. Nf3
{[%clk 0:03:09.6]} 7... f5 {[%clk 0:03:01.3]} 8. Qh3 {[%clk 0:03:06.7]} 8... Be7
{[%clk 0:02:59.9]} 9. g4 {[%clk 0:03:05.6]} 9... O-O {[%clk 0:02:33.5]} 10. Rg1
{[%clk 0:03:05.9]} 10... g6 {[%clk 0:02:24.8]} 11. gxf5 {[%clk 0:03:03.5]} 11...
Rxf5 {[%clk 0:02:21.1]} 12. Bd3 {[%clk 0:03:04.6]} 12... Rf7 {[%clk 0:02:16.2]}
13. Bxg6 {[%clk 0:02:52.4]} 13... hxg6 {[%clk 0:02:16.8]} 14. Rxg6+ {[%clk
0:02:54.3]} 14... Rg7 {[%clk 0:02:18.2]} 15. Qxe6+ {[%clk 0:02:55.5]} 15... Kf8
{[%clk 0:02:10.9]} 16. Qf5+ {[%clk 0:02:50.5]} 16... Nf6 {[%clk 0:02:05.8]} 17.
Rxf6+ {[%clk 0:02:09.3]} 17... Bxf6 {[%clk 0:02:06.7]} 18. Qxf6+ {[%clk
0:02:08.9]} 18... Qxf6 {[%clk 0:02:07.9]} 19. exf6 {[%clk 0:02:10.8]} 19... Rh7
{[%clk 0:02:02.5]} 20. Nc3 {[%clk 0:02:11]} 20... Nb4 {[%clk 0:01:53.3]} 21.
O-O-O {[%clk 0:02:09.5]} 21... Bg4 {[%clk 0:01:54.2]} 22. Ng5 {[%clk 0:02:00.9]}
22... Rxh2 {[%clk 0:01:52.6]} 23. Rg1 {[%clk 0:02:01.1]} 23... Bf5 {[%clk
0:01:53.6]} 24. f7 {[%clk 0:01:42.3]} 24... a6 {[%clk 0:01:41.1]} 25. a3 {[%clk
0:01:42.7]} 25... d4 {[%clk 0:01:42.1]} 26. axb4 {[%clk 0:01:43.2]} 26... dxc3
{[%clk 0:01:43.4]} 27. Bxc3 {[%clk 0:01:44]} 27... Bg6 {[%clk 0:01:37.2]} 28.
Nf3 {[%clk 0:01:31.5]} 28... Rh6 {[%clk 0:01:34.8]} 29. bxc5 {[%clk 0:01:22.5]}
29... Bxf7 {[%clk 0:01:35.9]} 30. Bg7+ {[%clk 0:01:22.2]} 1-0

[Event "*** Titled Tuesday 3|2 Blitz"]
[Site "Chess.com"]
[Date "2016.10.04"]
[Round "5"]
[White "Scott-fox21"]
[Black "FLchessplayer"]
[Result "1-0"]
[WhiteElo "2155"]
[BlackElo "2010"]
[TimeControl "180+2"]
[EndTime "18:02:08 PDT"]
[Termination "Scott-fox21 won by checkmate"]

1. d4 {[%clk 0:03:02]} 1... c5 {[%clk 0:03:00.7]} 2. d5 {[%clk 0:03:03.2]} 2...
d6 {[%clk 0:03:01.6]} 3. c4 {[%clk 0:02:59.9]} 3... g6 {[%clk 0:03:02.5]} 4. Nc3
{[%clk 0:03:00.6]} 4... Bg7 {[%clk 0:03:03.5]} 5. e4 {[%clk 0:03:01.8]} 5... Nf6
{[%clk 0:03:04.6]} 6. h3 {[%clk 0:03:00.4]} 6... O-O {[%clk 0:03:05.2]} 7. Bg5
{[%clk 0:03:01.4]} 7... h6 {[%clk 0:03:04.1]} 8. Be3 {[%clk 0:03:01.8]} 8... b5
{[%clk 0:03:04.5]} 9. cxb5 {[%clk 0:03:00.3]} 9... a6 {[%clk 0:03:05.4]} 10.
bxa6 {[%clk 0:03:00.3]} 10... Qa5 {[%clk 0:03:06.1]} 11. Bd2 {[%clk 0:02:57]}
11... Bxa6 {[%clk 0:02:54.1]} 12. Bxa6 {[%clk 0:02:55.7]} 12... Qxa6 {[%clk
0:02:55.1]} 13. Nge2 {[%clk 0:02:55.2]} 13... Nbd7 {[%clk 0:02:48.1]} 14. O-O
{[%clk 0:02:55.7]} 14... Rfb8 {[%clk 0:02:49]} 15. Qc1 {[%clk 0:02:39.8]} 15...
Kh7 {[%clk 0:02:45.8]} 16. Ng3 {[%clk 0:02:26.8]} 16... h5 {[%clk 0:02:44.1]}
17. Bg5 {[%clk 0:02:17.5]} 17... Qb6 {[%clk 0:02:30.9]} 18. b3 {[%clk
0:02:09.8]} 18... Re8 {[%clk 0:02:24.5]} 19. Kh2 {[%clk 0:01:55.7]} 19... Ne5
{[%clk 0:02:16.6]} 20. f4 {[%clk 0:01:47]} 20... Nd3 {[%clk 0:02:14.8]} 21. Qd2
{[%clk 0:01:42.4]} 21... Nb4 {[%clk 0:02:06]} 22. e5 {[%clk 0:01:23.2]} 22...
Nd7 {[%clk 0:01:55.1]} 23. e6 {[%clk 0:00:56]} 23... fxe6 {[%clk 0:01:50.6]} 24.
dxe6 {[%clk 0:00:57.9]} 24... Nf6 {[%clk 0:01:51]} 25. f5 {[%clk 0:00:55.8]}
25... gxf5 {[%clk 0:01:49.3]} 26. Nxf5 {[%clk 0:00:53.8]} 26... Bh8 {[%clk
0:01:36.7]} 27. Bxf6 {[%clk 0:00:44.8]} 27... Bxf6 {[%clk 0:01:33.9]} 28. Qh6+
{[%clk 0:00:45.3]} 28... Kg8 {[%clk 0:01:34.6]} 29. Qg6+ {[%clk 0:00:41.1]}
29... Kf8 {[%clk 0:01:28.4]} 30. Qf7# {[%clk 0:00:41.7]} 1-0

[Event "*** Titled Tuesday 3|2 Blitz"]
[Site "Chess.com"]
[Date "2016.10.04"]
[Round "5"]
[White "Rumpel-VK"]
[Black "Joshukid"]
[Result "0-1"]
[WhiteElo "2444"]
[BlackElo "2362"]
[TimeControl "180+2"]
[EndTime "18:03:10 PDT"]
[Termination "Joshukid won by resignation"]

1. e4 {[%clk 0:03:01.9]} 1... c5 {[%clk 0:02:56]} 2. g3 {[%clk 0:03:02.6]} 2...
Nc6 {[%clk 0:02:44.7]} 3. Bg2 {[%clk 0:03:03.9]} 3... g6 {[%clk 0:02:46.3]} 4.
d3 {[%clk 0:03:05.5]} 4... Bg7 {[%clk 0:02:44.7]} 5. f4 {[%clk 0:03:07]} 5... e6
{[%clk 0:02:44.1]} 6. Nf3 {[%clk 0:03:08.4]} 6... d6 {[%clk 0:02:45.5]} 7. O-O
{[%clk 0:03:10]} 7... Nge7 {[%clk 0:02:46.5]} 8. c3 {[%clk 0:03:11.5]} 8... O-O
{[%clk 0:02:47.7]} 9. Na3 {[%clk 0:03:13]} 9... b6 {[%clk 0:02:48.9]} 10. Be3
{[%clk 0:03:13.2]} 10... Bb7 {[%clk 0:02:49.9]} 11. Qd2 {[%clk 0:03:14]} 11...
d5 {[%clk 0:02:51.1]} 12. Rad1 {[%clk 0:03:12.6]} 12... dxe4 {[%clk 0:02:50.3]}
13. dxe4 {[%clk 0:03:13.2]} 13... Qxd2 {[%clk 0:02:52.2]} 14. Nxd2 {[%clk
0:03:10.3]} 14... Rfd8 {[%clk 0:02:52.5]} 15. e5 {[%clk 0:03:08.1]} 15... Na5
{[%clk 0:02:49.3]} 16. Bxb7 {[%clk 0:02:56.5]} 16... Nxb7 {[%clk 0:02:51.2]} 17.
Ne4 {[%clk 0:02:57.6]} 17... Rxd1 {[%clk 0:02:41.5]} 18. Rxd1 {[%clk 0:02:57.4]}
18... Rd8 {[%clk 0:02:42.3]} 19. Rxd8+ {[%clk 0:02:57.1]} 19... Nxd8 {[%clk
0:02:43.5]} 20. Nb5 {[%clk 0:02:55.6]} 20... Ndc6 {[%clk 0:02:39.1]} 21. c4
{[%clk 0:02:48]} 21... Kf8 {[%clk 0:02:37.6]} 22. Ned6 {[%clk 0:02:44.6]} 22...
Nf5 {[%clk 0:02:29.8]} 23. Kf2 {[%clk 0:02:44.4]} 23... Nxd6 {[%clk 0:02:28.3]}
24. Nxd6 {[%clk 0:02:44.5]} 24... Ke7 {[%clk 0:02:29.1]} 25. b3 {[%clk
0:02:38.5]} 25... h5 {[%clk 0:02:27]} 26. Ne4 {[%clk 0:02:36.8]} 26... Kd7
{[%clk 0:02:25.6]} 27. Kf3 {[%clk 0:02:36.2]} 27... Bf8 {[%clk 0:02:24.4]} 28.
h3 {[%clk 0:02:35.6]} 28... Be7 {[%clk 0:02:25.4]} 29. g4 {[%clk 0:02:36.2]}
29... hxg4+ {[%clk 0:02:26.7]} 30. Kxg4 {[%clk 0:02:34.3]} 30... Nb4 {[%clk
0:02:27.1]} 31. a3 {[%clk 0:02:33.5]} 31... Nc2 {[%clk 0:02:25.8]} 32. Bc1
{[%clk 0:02:34.2]} 32... Nd4 {[%clk 0:02:22.2]} 33. Nd2 {[%clk 0:02:34.5]} 33...
Kc6 {[%clk 0:02:13.4]} 34. Bb2 {[%clk 0:02:34.6]} 34... Nf5 {[%clk 0:02:11.3]}
35. Nf3 {[%clk 0:02:32.5]} 35... Ne3+ {[%clk 0:02:10.1]} 36. Kg3 {[%clk
0:02:33.5]} 36... Nf5+ {[%clk 0:02:09.1]} 37. Kg4 {[%clk 0:02:33.3]} 37... Ne3+
{[%clk 0:02:10.1]} 38. Kg3 {[%clk 0:02:34.5]} 38... Nf5+ {[%clk 0:02:11.5]} 39.
Kf2 {[%clk 0:02:35.6]} 39... a6 {[%clk 0:02:06.7]} 40. a4 {[%clk 0:02:35.4]}
40... b5 {[%clk 0:02:07.7]} 41. Bc1 {[%clk 0:02:34.1]} 41... bxa4 {[%clk
0:02:05.8]} 42. bxa4 {[%clk 0:02:35.2]} 42... Nd4 {[%clk 0:02:06.5]} 43. Nxd4+
{[%clk 0:02:32]} 43... cxd4 {[%clk 0:02:08.4]} 44. Ke2 {[%clk 0:02:33.3]} 44...
Bb4 {[%clk 0:02:02.7]} 45. Bb2 {[%clk 0:02:28.1]} 45... Kb6 {[%clk 0:01:51.1]}
46. Bxd4+ {[%clk 0:02:17.7]} 46... Ka5 {[%clk 0:01:47.4]} 47. c5 {[%clk
0:02:18.7]} 47... Kxa4 {[%clk 0:01:46.6]} 48. c6 {[%clk 0:02:18]} 48... Ba5
{[%clk 0:01:46.4]} 49. f5 {[%clk 0:02:07.1]} 49... Kb5 {[%clk 0:01:25.2]} 50.
fxg6 {[%clk 0:02:05.2]} 50... fxg6 {[%clk 0:01:26.2]} 51. Kf3 {[%clk 0:02:04.1]}
51... Kxc6 {[%clk 0:01:27.1]} 52. Be3 {[%clk 0:02:03.8]} 52... Kd5 {[%clk
0:01:26.8]} 53. Kg4 {[%clk 0:02:05.2]} 53... Bd8 {[%clk 0:01:23]} 54. Kf4 {[%clk
0:01:56.9]} 54... a5 {[%clk 0:01:18.3]} 0-1

[Event "*** Titled Tuesday 3|2 Blitz"]
[Site "Chess.com"]
[Date "2016.10.04"]
[Round "5"]
[White "pedromartinez91"]
[Black "Noukii"]
[Result "0-1"]
[WhiteElo "2332"]
[BlackElo "2590"]
[TimeControl "180+2"]
[EndTime "18:03:45 PDT"]
[Termination "Noukii won by resignation"]

1. e4 {[%clk 0:01:34.8]} 1... Nf6 {[%clk 0:02:53]} 2. e5 {[%clk 0:01:32.6]} 2...
Nd5 {[%clk 0:02:54.2]} 3. d4 {[%clk 0:01:34.5]} 3... d6 {[%clk 0:02:55.7]} 4.
exd6 {[%clk 0:01:35.4]} 4... cxd6 {[%clk 0:02:57]} 5. Nf3 {[%clk 0:01:36.6]}
5... g6 {[%clk 0:02:57.8]} 6. Be2 {[%clk 0:01:37.5]} 6... Bg7 {[%clk 0:02:59.2]}
7. O-O {[%clk 0:01:38.6]} 7... O-O {[%clk 0:03:00.9]} 8. c4 {[%clk 0:01:39]}
8... Nb6 {[%clk 0:03:02.3]} 9. Nc3 {[%clk 0:01:39.9]} 9... Nc6 {[%clk
0:03:04.1]} 10. Be3 {[%clk 0:01:33.4]} 10... Bg4 {[%clk 0:03:05.2]} 11. d5
{[%clk 0:01:31.4]} 11... Bxf3 {[%clk 0:03:04.4]} 12. Bxf3 {[%clk 0:01:24.6]}
12... Ne5 {[%clk 0:03:05.7]} 13. Bxb6 {[%clk 0:01:14.6]} 13... Qxb6 {[%clk
0:03:06.2]} 14. Na4 {[%clk 0:00:42.5]} 14... Qa5 {[%clk 0:02:54.8]} 15. Be2
{[%clk 0:00:42.1]} 15... Rac8 {[%clk 0:02:49.9]} 16. Rc1 {[%clk 0:00:40.9]}
16... b5 {[%clk 0:02:48.4]} 17. f4 {[%clk 0:00:18.1]} 17... Nxc4 {[%clk
0:02:41.6]} 18. Bxc4 {[%clk 0:00:18]} 18... bxc4 {[%clk 0:02:40.3]} 19. Re1
{[%clk 0:00:18.5]} 19... Bf6 {[%clk 0:02:26.9]} 20. Re4 {[%clk 0:00:18.8]} 20...
Qb5 {[%clk 0:02:09.4]} 21. Kh1 {[%clk 0:00:19.3]} 21... Rc7 {[%clk 0:02:08.3]}
22. Re2 {[%clk 0:00:17.4]} 22... Rb8 {[%clk 0:01:58.3]} 23. Nc3 {[%clk
0:00:17.8]} 23... Qa5 {[%clk 0:01:59.3]} 24. a3 {[%clk 0:00:17.7]} 24... Rcb7
{[%clk 0:01:59.4]} 25. Ne4 {[%clk 0:00:17.5]} 25... Bxb2 {[%clk 0:01:56.8]} 26.
Rxc4 {[%clk 0:00:18.2]} 26... Bxa3 {[%clk 0:01:50.8]} 27. Nc3 {[%clk 0:00:17.6]}
27... Bb2 {[%clk 0:01:37.1]} 28. Rc2 {[%clk 0:00:17.5]} 28... Bxc3 {[%clk
0:01:37.1]} 29. R4xc3 {[%clk 0:00:18.7]} 29... Rb1 {[%clk 0:01:34.3]} 30. Rc8+
{[%clk 0:00:18.6]} 30... Kg7 {[%clk 0:01:35.4]} 31. Rc1 {[%clk 0:00:19.7]} 31...
Rxc1 {[%clk 0:01:31.4]} 32. Rxc1 {[%clk 0:00:18.2]} 32... Qb4 {[%clk 0:01:31.1]}
33. f5 {[%clk 0:00:17.9]} 33... Qe4 {[%clk 0:01:28.9]} 34. fxg6 {[%clk
0:00:18.4]} 34... hxg6 {[%clk 0:01:30.1]} 35. h3 {[%clk 0:00:19.5]} 35... Rb2
{[%clk 0:01:30.9]} 36. Qf1 {[%clk 0:00:15.4]} 36... Qxd5 {[%clk 0:01:29.3]} 37.
Rc7 {[%clk 0:00:16.3]} 37... Qe4 {[%clk 0:01:29.7]} 38. Rc3 {[%clk 0:00:12.3]}
38... Rb1 {[%clk 0:01:28.9]} 39. Rc1 {[%clk 0:00:13.9]} 39... Rxc1 {[%clk
0:01:30]} 40. Qxc1 {[%clk 0:00:15.5]} 40... Qd4 {[%clk 0:01:27.3]} 41. Qg5
{[%clk 0:00:12.9]} 41... Qa1+ {[%clk 0:01:25.2]} 42. Kh2 {[%clk 0:00:13.7]}
42... Qe5+ {[%clk 0:01:27.1]} 43. Qxe5+ {[%clk 0:00:14.9]} 43... dxe5 {[%clk
0:01:28.3]} 0-1

[Event "*** Titled Tuesday 3|2 Blitz"]
[Site "Chess.com"]
[Date "2016.10.04"]
[Round "5"]
[White "IamSchrodingersCat"]
[Black "MFBerna"]
[Result "0-1"]
[WhiteElo "2257"]
[BlackElo "2171"]
[TimeControl "180+2"]
[EndTime "18:04:09 PDT"]
[Termination "MFBerna won by checkmate"]

1. e4 {[%clk 0:03:01.9]} 1... e5 {[%clk 0:03:00.7]} 2. Nf3 {[%clk 0:02:59.4]}
2... Nc6 {[%clk 0:03:01.7]} 3. Bb5 {[%clk 0:02:59.1]} 3... a6 {[%clk 0:03:01.4]}
4. Ba4 {[%clk 0:02:59]} 4... Nf6 {[%clk 0:03:01.8]} 5. O-O {[%clk 0:02:59.8]}
5... Be7 {[%clk 0:02:57.3]} 6. d3 {[%clk 0:02:59.3]} 6... b5 {[%clk 0:02:58.5]}
7. Bb3 {[%clk 0:02:56.1]} 7... O-O {[%clk 0:02:59.6]} 8. Nc3 {[%clk 0:02:54]}
8... d6 {[%clk 0:02:58.5]} 9. a3 {[%clk 0:02:54.5]} 9... Bb7 {[%clk 0:02:40.8]}
10. Nd5 {[%clk 0:02:45.4]} 10... Nxd5 {[%clk 0:02:36.4]} 11. Bxd5 {[%clk
0:02:47.3]} 11... Na5 {[%clk 0:02:32.9]} 12. b4 {[%clk 0:02:35.2]} 12... Bxd5
{[%clk 0:02:33.3]} 13. exd5 {[%clk 0:02:37.1]} 13... Nb7 {[%clk 0:02:33.9]} 14.
c4 {[%clk 0:02:38.7]} 14... Qd7 {[%clk 0:02:22.6]} 15. Be3 {[%clk 0:02:24.6]}
15... a5 {[%clk 0:02:14.5]} 16. Qb3 {[%clk 0:02:14.7]} 16... c6 {[%clk
0:02:00.7]} 17. dxc6 {[%clk 0:01:47]} 17... Qxc6 {[%clk 0:02:02.6]} 18. Rfc1
{[%clk 0:01:42.7]} 18... axb4 {[%clk 0:02:02.8]} 19. axb4 {[%clk 0:01:40.5]}
19... Rfc8 {[%clk 0:01:50.1]} 20. Rxa8 {[%clk 0:01:24.4]} 20... Rxa8 {[%clk
0:01:50.8]} 21. h3 {[%clk 0:01:03.1]} 21... Nd8 {[%clk 0:01:16]} 22. d4 {[%clk
0:00:33.2]} 22... bxc4 {[%clk 0:01:01]} 23. Rxc4 {[%clk 0:00:33.7]} 23... Qd5
{[%clk 0:00:58.2]} 24. dxe5 {[%clk 0:00:30.5]} 24... dxe5 {[%clk 0:00:40.5]} 25.
Qc3 {[%clk 0:00:24.6]} 25... f6 {[%clk 0:00:23.3]} 26. Nd2 {[%clk 0:00:21.4]}
26... Ne6 {[%clk 0:00:22.3]} 27. Rc8+ {[%clk 0:00:19]} 27... Rxc8 {[%clk
0:00:22.6]} 28. Qxc8+ {[%clk 0:00:20.9]} 28... Kf7 {[%clk 0:00:24.5]} 29. Qc3
{[%clk 0:00:19.4]} 29... f5 {[%clk 0:00:23.8]} 30. Bb6 {[%clk 0:00:14.2]} 30...
Nf4 {[%clk 0:00:22.4]} 31. Qc2 {[%clk 0:00:12.4]} 31... Qxg2# {[%clk 0:00:22.3]}
0-1